fUSD/lending_fUSD_20240514
["ID","MTS","AMOUNT","RATE_DAILY","PERIOD"]
[327002361,1715700646015,-9161.56,0.00012993,2]
[327002362,1715700646026,-551.28,0.00012993,2]
[327002363,1715700646037,-551.28,0.00012993,2]
[327002364,1715700646048,-551.28,0.00012993,2]
[327002365,1715700646058,-500.0,0.00012993,2]
[327002366,1715700646068,-500.0,0.00012993,2]
[327002367,1715700646079,-500.0,0.00012993,2]
[327002368,1715700646090,-500.0,0.00012993,2]
[327002369,1715700646100,-500.0,0.00012993,2]
[327002370,1715700646111,-500.0,0.00012993,2]
[327002371,1715700646125,-500.0,0.00012993,2]
[327002372,1715700646135,-500.0,0.00012993,2]
[327002373,1715700646145,-500.0,0.00012993,2]
[327002374,1715700646156,-500.0,0.00012993,2]
[327002375,1715700646166,-500.0,0.00012993,2]
[327002376,1715700646177,-3535.86,0.00012993,2]
[327002377,1715700646188,-3535.86,0.00012993,2]
[327002378,1715700646198,-3535.86,0.00012993,2]
[327002379,1715700646209,-861.04,0.00012993,2]
[327002380,1715700646220,-861.04,0.00012993,2]
[327002381,1715700646231,-861.04,0.00012993,2]
[327002383,1715700646242,-500.0,0.00012993,2]
[327002385,1715700646253,-500.0,0.00012993,2]
[327002387,1715700646268,-500.0,0.00012993,2]
[327002389,1715700646281,-1528.82,0.00012993,2]
[327002391,1715700646293,-1528.82,0.00012993,2]
[327002394,1715700646304,-500.0,0.00012993,2]
[327002396,1715700646318,-500.0,0.00012993,2]
[327002398,1715700646329,-500.0,0.00012993,2]
[327002400,1715700646340,-513.82285501,0.00012993,2]
[327002402,1715700646351,-500.0,0.00012993,2]
[327002405,1715700646362,-500.0,0.00012993,2]
[327002407,1715700646376,-500.0,0.00012993,2]
[327002409,1715700646386,-626.9,0.00012993,2]
[327002411,1715700646397,-500.0,0.00012993,2]
[327002413,1715700646408,-500.0,0.00012993,2]
[327002415,1715700646419,-500.0,0.00012993,2]
[327002417,1715700646430,-500.0,0.00012993,2]
[327002419,1715700646441,-515.86739005,0.00012993,2]
[327002421,1715700646452,-508.75629637,0.00012993,2]
[327002423,1715700646463,-500.0,0.00012993,2]
[327002426,1715700646474,-500.0,0.00012993,2]
[327002428,1715700646486,-500.0,0.00012993,2]
[327002429,1715700646495,-507.16778052,0.00012993,2]
[327002431,1715700646505,-500.0,0.00012993,2]
[327002432,1715700646514,-500.0,0.00012993,2]
[327002433,1715700646525,-500.0,0.00012993,2]
[327002434,1715700646534,-500.0,0.00012993,2]
[327002435,1715700646544,-500.0,0.00012993,2]
[327002436,1715700646554,-500.0,0.00012993,2]
[327002437,1715700646564,-500.0,0.00012993,2]
[327002438,1715700646574,-500.0,0.00012993,2]
[327002439,1715700646852,-500.0,0.00012993,2]
[327002440,1715700646862,-500.0,0.00012993,2]
[327002441,1715700646872,-500.0,0.00012993,2]
[327002442,1715700646882,-1349.59,0.00012993,2]
[327002443,1715700646891,-1349.59,0.00012993,2]
[327002444,1715700646900,-1349.59,0.00012993,2]
[327002445,1715700646910,-623.19,0.00012993,2]
[327002446,1715700646919,-623.19,0.00012993,2]
[327002447,1715700646929,-500.0,0.00012993,2]
[327002448,1715700646938,-500.0,0.00012993,2]
[327002449,1715700646948,-500.0,0.00012993,2]
[327002450,1715700646957,-443.82,0.00012993,2]
[327002451,1715700646966,-500.0,0.00012993,2]
[327002452,1715700646976,-500.0,0.00012993,2]
[327002453,1715700646985,-1002.85,0.00012993,2]
[327002454,1715700646994,-1002.85,0.00012993,2]
[327002455,1715700647004,-1002.85,0.00012993,2]
[327002456,1715700647013,-339.46339024,0.00012993,2]
[327002457,1715700647022,-500.0,0.00012993,2]
[327002458,1715700647032,-500.0,0.00012993,2]
[327002459,1715700647041,-500.0,0.00012993,2]
[327002460,1715700647051,-500.0,0.00012993,2]
[327002461,1715700647059,-500.0,0.00012993,2]
[327002462,1715700647069,-500.0,0.00012993,2]
[327002463,1715700647079,-500.0,0.00012993,2]
[327002464,1715700647088,-500.0,0.00012993,2]
[327002465,1715700647098,-500.0,0.00012993,2]
[327002466,1715700647107,-541.5,0.00012993,2]
[327002467,1715700647119,-541.5,0.00012993,2]
[327002468,1715700647129,-651.96,0.00012993,2]
[327002469,1715700647138,-651.96,0.00012993,2]
[327002470,1715700647147,-651.96,0.00012993,2]
[327002471,1715700647157,-500.0,0.00012993,2]
[327002472,1715700647166,-500.0,0.00012993,2]
[327002473,1715700647176,-500.0,0.00012993,2]
[327002474,1715700647185,-500.0,0.00012993,2]
[327002475,1715700647195,-858.74,0.00012993,2]
[327002476,1715700647204,-858.74,0.00012993,2]
[327002477,1715700647214,-858.74,0.00012993,2]
[327002478,1715700647223,-500.0,0.00012993,2]
[327002479,1715700647233,-500.0,0.00012993,2]
[327002480,1715700647243,-471.47089136,0.00012993,2]
[327002481,1715700647254,-1139.97,0.00012993,2]
[327002482,1715700647265,-1139.97,0.00012993,2]
[327002483,1715700647279,-974.53,0.00012993,2]
[327002484,1715700647289,-974.53,0.00012993,2]
[327002485,1715700647298,-1259.59,0.00012993,2]
[327002486,1715700647307,-1259.59,0.00012993,2]
[327002487,1715700647316,-1823.27,0.00012993,2]
[327002488,1715700647326,-1823.27,0.00012993,2]
[327002489,1715700647335,-231.64,0.00012993,2]
[327002490,1715700647345,-782.49,0.00012993,2]
[327002491,1715700647356,-782.49,0.00012993,2]
[327002492,1715700647367,-500.0,0.00012993,2]
[327002493,1715700647377,-500.0,0.00012993,2]
[327002494,1715700647386,-500.0,0.00012993,2]
[327002495,1715700647397,-505.99411736,0.00012993,2]
[327002496,1715700647407,-500.0,0.00012993,2]
[327002497,1715700647416,-500.0,0.00012993,2]
[327002498,1715700647425,-500.0,0.00012993,2]
[327002499,1715700647436,-500.0,0.00012993,2]
[327002500,1715700647445,-500.0,0.00012993,2]
[327002501,1715700647456,-500.0,0.00012993,2]
[327002502,1715700647467,-500.0,0.00012993,2]
[327002503,1715700647476,-500.0,0.00012993,2]
[327002504,1715700647486,-500.0,0.00012993,2]
[327002505,1715700647495,-500.0,0.00012993,2]
[327002506,1715700647505,-500.0,0.00012993,2]
[327002507,1715700647514,-1313.76,0.00012993,2]
[327002508,1715700647524,-1313.76,0.00012993,2]
[327002509,1715700647534,-1313.76,0.00012993,2]
[327002510,1715700647544,-500.0,0.00012993,2]
[327002511,1715700647554,-328.0,0.00012993,2]
[327002512,1715700647564,-500.0,0.00012993,2]
[327002513,1715700647572,-3778.21,0.00012993,2]
[327002514,1715700647582,-500.0,0.00012993,2]
[327002515,1715700647591,-3778.21,0.00012993,2]
[327002516,1715700647601,-519.3,0.00012993,2]
[327002517,1715700647610,-519.3,0.00012993,2]
[327002518,1715700647621,-500.0,0.00012993,2]
[327002519,1715700647631,-500.0,0.00012993,2]
[327002520,1715700647640,-500.0,0.00012993,2]
[327002521,1715700647650,-500.0,0.00012993,2]
[327002522,1715700647659,-500.0,0.00012993,2]
[327002523,1715700647668,-500.0,0.00012993,2]
[327002524,1715700647676,-550.35,0.00012993,2]
[327002525,1715700647686,-500.0,0.00012993,2]
[327002526,1715700647695,-550.35,0.00012993,2]
[327002527,1715700647704,-550.35,0.00012993,2]
[327002528,1715700647713,-500.0,0.00012993,2]
[327002529,1715700647722,-500.0,0.00012993,2]
[327002530,1715700647731,-198959.22246403,0.00012994,2]
[327002531,1715700647749,-898.74271966,0.00012994,2]
[327002532,1715700647760,-1875.23160313,0.00012994,2]
[327002533,1715700647771,-2752.09787788,0.00012994,2]
[327002534,1715700647783,-334.60923916,0.00012994,2]
[327002535,1715700648582,-1172.26,0.00012992,2]
[327002536,1715700648592,-1172.26,0.00012993,2]
[327002537,1715700648601,-1172.26,0.00012993,2]
[327002538,1715700648611,-2289.02046447,0.00012994,2]
[327002539,1715700648624,-412.1753019,0.00012994,2]
[327002540,1715700648636,-296.13443335,0.00012994,2]
[327002541,1715700648647,-778.437316,0.00012994,2]
[327002542,1715700648658,-1482.10899994,0.00012994,2]
[327002543,1715700648810,-2062.49295686,0.00012994,2]
[327002544,1715700648847,-16988.87419984,0.00012994,2]
[327002545,1715700648858,-761.5049698,0.00012994,2]
[327002546,1715700648871,-4374.47431896,0.00012994,2]
[327002547,1715700648882,-1561.16871491,0.00012994,2]
[327002548,1715700648893,-6199.9,0.00012994,2]
[327002549,1715700648904,-960.38398374,0.00012994,2]
[327002550,1715700648943,-1898.23381044,0.00012994,2]
[327002551,1715700826972,-150.0,8.502e-05,2]
[327002552,1715700827254,-150.0,8.502e-05,2]
[327002553,1715700827435,-150.0,8.502e-05,2]
[327002554,1715700827619,-150.0,8.502e-05,2]
[327002555,1715700829088,-341.63029962,8.502e-05,2]
[327002556,1715700829359,150.0,8.501e-05,2]
[327002557,1715700830296,-150.0,8.501e-05,2]
[327002558,1715700830580,-150.0,8.501e-05,2]
[327002559,1715700830782,-150.0,8.501e-05,2]
[327002560,1715700830928,-150.0,8.501e-05,2]
[327002561,1715700831088,-150.0,8.501e-05,2]
[327002562,1715700831234,-150.0,8.501e-05,2]
[327002563,1715700831386,-150.0,8.501e-05,2]
[327002564,1715700831566,-150.0,8.501e-05,2]
[327002565,1715700831736,-150.0,8.501e-05,2]
[327002566,1715700831897,-150.0,8.501e-05,2]
[327002567,1715700832045,-150.0,8.501e-05,2]
[327002568,1715700832175,-150.0,8.501e-05,2]
[327002569,1715700832320,-168.73176159,8.501e-05,2]
[327002570,1715700832487,-150.0,8.501e-05,2]
[327002571,1715700833036,-150.0,8.501e-05,2]
[327002572,1715700833278,-150.0,8.501e-05,2]
[327002573,1715700833445,-150.0,8.501e-05,2]
[327002574,1715700833611,-150.0,8.501e-05,2]
[327002575,1715700833815,-150.0,8.501e-05,2]
[327002576,1715700833973,-150.0,8.501e-05,2]
[327002577,1715700834131,-150.0,8.501e-05,2]
[327002578,1715700834291,-150.0,8.501e-05,2]
[327002579,1715700834465,-150.0,8.501e-05,2]
[327002580,1715700834616,-150.0,8.501e-05,2]
[327002581,1715700834779,-150.0,8.501e-05,2]
[327002582,1715700834946,-150.0,8.501e-05,2]
[327002583,1715700835094,-150.0,8.501e-05,2]
[327002584,1715700835257,-150.0,8.501e-05,2]
[327002585,1715700835406,-150.0,8.501e-05,2]
[327002586,1715700836782,-295.06146197,8.501e-05,2]
[327002587,1715700851550,260.45583852,8.5e-05,2]
[327002588,1715700872875,373.51823841,6.94e-05,2]
[327002590,1715700963394,155.0,8.5e-05,2]
[327002594,1715701391933,155.0,8.5e-05,2]
[327002596,1715701541438,3088.25281878,8.5e-05,2]
[327002597,1715701556829,1204.97401448,8.5e-05,2]
[327002598,1715701558119,260.45583852,8.5e-05,2]
[327002599,1715701559157,1204.97401448,8.5e-05,2]
[327002600,1715701563664,1204.97401448,8.5e-05,2]
[327002601,1715701739447,938.41528503,8.5e-05,2]
[327002602,1715701774250,-746.49363508,8.501e-05,2]
[327002603,1715701774272,-524.28180258,9e-05,2]
[327002619,1715701832155,-131.44704389,9e-05,2]
[327002620,1715701832165,-436.740793,9.898e-05,2]
[327002621,1715701832174,-324.67066305,0.0001,2]
[327002622,1715701832183,-150.0,0.00010408,2]
[327002623,1715701832192,-809.42150006,0.00010409,2]
[327002624,1715701832215,-707.64498718,0.00010409,2]
[327002625,1715701832238,-3982.74413388,0.00010409,2]
[327002626,1715701832273,-558.30246279,0.00010409,2]
[327002627,1715701832342,-312.10753589,0.00010409,2]
[327002628,1715701832354,-927.59692411,0.00010409,2]
[327002629,1715701832405,-492.41305048,0.00010409,2]
[327002630,1715701832417,-1291.9075021,0.00010409,2]
[327002631,1715701832471,-771.58221348,0.00010409,2]
[327002632,1715701832482,-265.0,0.00010409,2]
[327002633,1715701832494,-5715.61162359,0.00010409,2]
[327002634,1715701832504,-576.98,0.00010411,2]
[327002635,1715701832514,-1204.97401448,0.00011448,2]
[327002636,1715701832523,-210.0,0.00011449,2]
[327002637,1715701832532,-250.0,0.00011544,2]
[327002639,1715701832541,-17088.50684732,0.00011571,2]
[327002652,1715701838164,-630.32,0.00011571,2]
[327002653,1715701838176,-588.76465896,0.00011571,2]
[327002654,1715701838562,-8254.16537779,0.00011571,2]
[327002655,1715701838576,-46.59311593,0.00011571,2]
[327002656,1715701838586,-557.05,0.00011625,2]
[327002657,1715701838596,-640.0,0.00011651,2]
[327002658,1715701838607,-250.0,0.00011705,2]
[327002659,1715701838622,-188.09,0.00011763,2]
[327002660,1715701838632,-1331.42843759,0.000118,2]
[327002661,1715701838645,-219.10826539,0.000118,2]
[327002662,1715701838655,-167.76,0.00011803,2]
[327002663,1715701838664,-360.0,0.00011934,2]
[327002664,1715701838673,-27.80571605,0.00012002,2]
[327002665,1715701838695,-472.18428395,0.00012002,2]
[327002666,1715701838705,-178.64,0.0001208,2]
[327002667,1715701838715,-2191.64777523,0.00012347,7]
[327002668,1715701838725,-168.57239671,0.00012864,2]
[327002669,1715701838734,-524.09521067,0.00012876,2]
[327002670,1715701838743,-500.0,0.00012876,2]
[327002671,1715701838753,-500.0,0.00012876,2]
[327002672,1715701838763,-500.0,0.00012876,2]
[327002673,1715701838772,-518.71105039,0.00012876,2]
[327002674,1715701838782,-1066.88,0.00012876,2]
[327002675,1715701838791,-522.49430468,0.00012876,2]
[327002676,1715701838801,-531.16050248,0.00012876,2]
[327002677,1715701838810,-500.0,0.00012876,2]
[327002678,1715701838819,-500.0,0.00012876,2]
[327002679,1715701838830,-614.97,0.00012876,2]
[327002680,1715701838840,-500.0,0.00012876,2]
[327002681,1715701839070,-500.0,0.00012876,2]
[327002682,1715701839081,-500.0,0.00012876,2]
[327002683,1715701839092,-500.0,0.00012876,2]
[327002684,1715701839102,-559.49,0.00012876,2]
[327002685,1715701839111,-503.27845409,0.00012876,2]
[327002686,1715701839121,-853.88823558,0.00012876,2]
[327002687,1715701839131,-500.0,0.00012876,2]
[327002688,1715701839140,-519.23544495,0.00012876,2]
[327002689,1715701839154,-500.0,0.00012876,2]
[327002690,1715701839164,-500.0,0.00012876,2]
[327002691,1715701839175,-500.0,0.00012876,2]
[327002692,1715701839185,-500.0,0.00012876,2]
[327002693,1715701839196,-527.09802917,0.00012876,2]
[327002694,1715701839206,-500.0,0.00012876,2]
[327002695,1715701839216,-500.0,0.00012876,2]
[327002696,1715701839226,-500.0,0.00012876,2]
[327002697,1715701839235,-500.0,0.00012876,2]
[327002698,1715701839245,-760.5,0.00012876,2]
[327002699,1715701839254,-500.0,0.00012876,2]
[327002700,1715701839264,-529.59924212,0.00012876,2]
[327002701,1715701839274,-503.16274181,0.00012876,2]
[327002702,1715701839284,-372.14853349,0.00012876,2]
[327002703,1715701839294,-466.23800503,0.00012876,2]
[327002704,1715701839303,-500.0,0.00012876,2]
[327002705,1715701839312,-500.0,0.00012876,2]
[327002706,1715701839323,-500.0,0.00012876,2]
[327002707,1715701839334,-543.37275842,0.00012876,2]
[327002708,1715701839345,-500.0,0.00012876,2]
[327002709,1715701839356,-503.0834372,0.00012876,2]
[327002710,1715701839367,-503.93691117,0.00012876,2]
[327002711,1715701839377,-500.0,0.00012876,2]
[327002712,1715701839387,-500.0,0.00012876,2]
[327002713,1715701839400,-500.0,0.00012876,2]
[327002714,1715701839409,-348.24826143,0.00012876,2]
[327002715,1715701839418,-500.0,0.00012876,2]
[327002716,1715701839427,-500.0,0.00012876,2]
[327002717,1715701839437,-503.1255895,0.00012876,2]
[327002718,1715701839446,-1217.0,0.00012876,2]
[327002719,1715701839456,-500.0,0.00012876,2]
[327002720,1715701839467,-500.0,0.00012876,2]
[327002721,1715701839478,-546.47,0.00012876,2]
[327002722,1715701839488,-500.0,0.00012876,2]
[327002723,1715701839499,-500.0,0.00012876,2]
[327002724,1715701839509,-505.29045493,0.00012876,2]
[327002725,1715701839519,-533.0744774,0.00012876,2]
[327002726,1715701839530,-500.0,0.00012876,2]
[327002727,1715701839540,-545.11899411,0.00012876,2]
[327002728,1715701839550,-500.0,0.00012876,2]
[327002729,1715701839560,-512.51236384,0.00012876,2]
[327002730,1715701839571,-500.0,0.00012876,2]
[327002731,1715701839580,-505.03469438,0.00012876,2]
[327002732,1715701839590,-500.0,0.00012876,2]
[327002733,1715701839600,-200.0,0.00012876,2]
[327002734,1715701839612,-500.0,0.00012876,2]
[327002735,1715701839623,-513.81956627,0.00012876,2]
[327002736,1715701839632,-500.0,0.00012876,2]
[327002737,1715701839642,-512.68424748,0.00012876,2]
[327002738,1715701839654,-500.0,0.00012876,2]
[327002739,1715701839664,-500.0,0.00012876,2]
[327002740,1715701839673,-500.0,0.00012876,2]
[327002741,1715701839683,-500.0,0.00012876,2]
[327002742,1715701839696,-500.0,0.00012876,2]
[327002743,1715701839707,-445.75269073,0.00012876,2]
[327002744,1715701839716,-500.0,0.00012876,2]
[327002745,1715701839726,-500.0,0.00012876,2]
[327002746,1715701839735,-500.0,0.00012876,2]
[327002747,1715701839746,-500.0,0.00012876,2]
[327002748,1715701839755,-500.0,0.00012876,2]
[327002749,1715701839765,-500.0,0.00012876,2]
[327002750,1715701839775,-500.0,0.00012876,2]
[327002751,1715701839785,-500.0,0.00012876,2]
[327002752,1715701839796,-510.7727339,0.00012876,2]
[327002753,1715701839807,-500.0,0.00012876,2]
[327002754,1715701839817,-500.0,0.00012876,2]
[327002755,1715701839827,-500.0,0.00012876,2]
[327002756,1715701839838,-500.0,0.00012876,2]
[327002757,1715701839849,-514.09310737,0.00012876,2]
[327002758,1715701839859,-500.0,0.00012876,2]
[327002759,1715701839870,-385.11210877,0.00012876,2]
[327002760,1715701839880,-500.0,0.00012876,2]
[327002761,1715701839889,-500.0,0.00012876,2]
[327002762,1715701839902,-520.78524218,0.00012876,2]
[327002763,1715701839911,-500.0,0.00012876,2]
[327002764,1715701839923,-500.0,0.00012876,2]
[327002765,1715701839934,-500.0,0.00012876,2]
[327002766,1715701839945,-500.0,0.00012876,2]
[327002767,1715701839957,-500.0,0.00012876,2]
[327002768,1715701839969,-500.0,0.00012876,2]
[327002769,1715701839979,-500.0,0.00012876,2]
[327002770,1715701839989,-500.0,0.00012876,2]
[327002771,1715701839999,-500.0,0.00012876,2]
[327002772,1715701840009,-500.0,0.00012876,2]
[327002773,1715701840019,-528.75932905,0.00012876,2]
[327002774,1715701840028,-500.0,0.00012876,2]
[327002775,1715701840038,-500.0,0.00012876,2]
[327002776,1715701840047,-500.0,0.00012876,2]
[327002777,1715701840057,-500.0,0.00012876,2]
[327002778,1715701840067,-500.0,0.00012876,2]
[327002779,1715701840078,-500.0,0.00012876,2]
[327002780,1715701840087,-500.0,0.00012876,2]
[327002781,1715701840098,-404.51965724,0.00012876,2]
[327002782,1715701840107,-500.0,0.00012876,2]
[327002783,1715701840118,-500.0,0.00012876,2]
[327002784,1715701840129,-500.0,0.00012876,2]
[327002785,1715701840139,-500.0,0.00012876,2]
[327002786,1715701840151,-511.55320975,0.00012876,2]
[327002787,1715701840161,-505.49193268,0.00012876,2]
[327002788,1715701840171,-500.0,0.00012876,2]
[327002789,1715701840180,-507.32339612,0.00012876,2]
[327002790,1715701840189,-502.15361776,0.00012876,2]
[327002791,1715701840199,-500.0,0.00012876,2]
[327002792,1715701840209,-500.0,0.00012876,2]
[327002793,1715701840219,-500.0,0.00012876,2]
[327002794,1715701840228,-500.0,0.00012876,2]
[327002795,1715701840238,-500.0,0.00012876,2]
[327002796,1715701840247,-500.0,0.00012876,2]
[327002797,1715701840257,-525.2043245,0.00012876,2]
[327002798,1715701840267,-500.0,0.00012876,2]
[327002799,1715701840277,-500.0,0.00012876,2]
[327002800,1715701840286,-500.0,0.00012876,2]
[327002801,1715701840296,-441.2794211,0.00012876,2]
[327002802,1715701840305,-500.0,0.00012876,2]
[327002803,1715701840315,-500.0,0.00012876,2]
[327002804,1715701840325,-500.0,0.00012876,2]
[327002805,1715701840335,-335.63326236,0.00012876,2]
[327002806,1715701840441,-164.36673764,0.00012876,2]
[327002807,1715701840451,-234.84755086,0.00012876,2]
[327002808,1715701840461,-500.0,0.00012876,2]
[327002809,1715701840471,-503.31950506,0.00012876,2]
[327002810,1715701840480,-500.0,0.00012876,2]
[327002811,1715701840490,-524.81677659,0.00012876,2]
[327002812,1715701840499,-500.0,0.00012876,2]
[327002813,1715701840509,-122.41801218,0.00012876,2]
[327002814,1715701840526,-377.58198782,0.00012876,2]
[327002815,1715701840535,-500.0,0.00012876,2]
[327002816,1715701840546,-520.41159622,0.00012876,2]
[327002817,1715701840555,-309.00780307,0.00012876,2]
[327002818,1715701840568,-190.99219693,0.00012876,2]
[327002819,1715701840578,-500.0,0.00012876,2]
[327002820,1715701840587,-500.0,0.00012876,2]
[327002821,1715701840597,-500.0,0.00012876,2]
[327002822,1715701840612,-500.0,0.00012876,2]
[327002823,1715701840622,-500.0,0.00012876,2]
[327002824,1715701840632,-500.0,0.00012876,2]
[327002825,1715701840642,-500.0,0.00012876,2]
[327002826,1715701840655,-153.14104741,0.00012876,2]
[327002827,1715701840675,-346.85895259,0.00012876,2]
[327002828,1715701840688,-503.93441898,0.00012876,2]
[327002829,1715701840698,-155.0,0.00012876,2]
[327002830,1715701840707,-494.20662843,0.00012876,2]
[327002831,1715701840720,-5.79337157,0.00012876,2]
[327002832,1715701840730,-294.20662843,0.00012876,2]
[327002833,1715701840742,-205.79337157,0.00012876,2]
[327002834,1715701840752,-500.0,0.00012876,2]
[327002835,1715701840762,-500.0,0.00012876,2]
[327002836,1715701840772,-356.59954678,0.00012876,2]
[327002837,1715701840784,-143.40045322,0.00012876,2]
[327002838,1715701840794,-500.0,0.00012876,2]
[327002839,1715701840804,-500.0,0.00012876,2]
[327002840,1715701840814,-506.55733285,0.00012876,2]
[327002841,1715701840824,-394.90785189,0.00012876,2]
[327002842,1715701840838,-105.09214811,0.00012876,2]
[327002843,1715701840847,-324.5157893,0.00012876,2]
[327002844,1715701840859,-175.4842107,0.00012876,2]
[327002845,1715701840869,-500.0,0.00012876,2]
[327002846,1715701840878,-500.0,0.00012876,2]
[327002847,1715701840888,-358.12260084,0.00012876,2]
[327002848,1715701840901,-149.3028313,0.00012876,2]
[327002849,1715701840910,-500.0,0.00012876,2]
[327002850,1715701840919,-500.0,0.00012876,2]
[327002851,1715701840928,-500.0,0.00012876,2]
[327002852,1715701840938,-500.0,0.00012876,2]
[327002853,1715701840947,-505.62510698,0.00012876,2]
[327002854,1715701840957,-500.0,0.00012876,2]
[327002855,1715701840966,-477.04515372,0.00012876,2]
[327002856,1715701840975,-523.75303212,0.00012876,2]
[327002857,1715701840985,-500.0,0.00012876,2]
[327002858,1715701840995,-500.0,0.00012876,2]
[327002859,1715701841004,-247.29775639,0.00012876,2]
[327002869,1715701843347,-252.70224361,0.00012876,2]
[327002870,1715701843356,-500.0,0.00012876,2]
[327002871,1715701843365,-500.0,0.00012876,2]
[327002872,1715701843374,-500.0,0.00012876,2]
[327002873,1715701843383,-500.0,0.00012876,2]
[327002874,1715701843392,-526.33056831,0.00012876,2]
[327002875,1715701843401,-500.0,0.00012876,2]
[327002876,1715701843410,-500.0,0.00012876,2]
[327002877,1715701843419,-500.0,0.00012876,2]
[327002878,1715701843428,-500.0,0.00012876,2]
[327002879,1715701843440,-57.56910796,0.00012876,2]
[327002880,1715701843463,-463.41963389,0.00012876,2]
[327002881,1715701843475,-500.0,0.00012876,2]
[327002882,1715701843484,-512.99270509,0.00012876,2]
[327002883,1715701843494,-500.0,0.00012876,2]
[327002884,1715701843504,-500.0,0.00012876,2]
[327002885,1715701843514,-408.40535753,0.00012876,2]
[327002886,1715701843524,-500.0,0.00012876,2]
[327002887,1715701843536,-500.0,0.00012876,2]
[327002888,1715701843546,-500.0,0.00012876,2]
[327002889,1715701843556,-500.0,0.00012876,2]
[327002890,1715701843567,-500.0,0.00012876,2]
[327002891,1715701843576,-500.0,0.00012876,2]
[327002892,1715701843586,-512.40346512,0.00012876,2]
[327002893,1715701843596,-500.0,0.00012876,2]
[327002894,1715701843605,-500.0,0.00012876,2]
[327002895,1715701843620,-500.0,0.00012876,2]
[327002896,1715701843632,-500.0,0.00012876,2]
[327002897,1715701843642,-365.06220547,0.00012876,2]
[327002898,1715701843652,-156.08772152,0.00012876,2]
[327002899,1715701843662,-2000.0,0.00012876,2]
[327002900,1715701843671,-350.79039015,0.00012876,2]
[327002901,1715701843680,-179.96253894,0.00012876,2]
[327002903,1715701843694,-336.73188483,0.00012876,2]
[327002904,1715701843704,-273.87811517,0.00012876,2]
[327002913,1715701846172,-226.12188483,0.00012876,2]
[327002914,1715701846181,-28.87815525,0.00012876,2]
[327002915,1715701846233,-126.46527952,0.00012876,2]
[327002916,1715701846243,-181.10864048,0.00012876,2]
[327002917,1715701846256,-122.08207115,0.00012876,2]
[327002918,1715701846266,-500.0,0.00012876,2]
[327002919,1715701846277,-514.8890976,0.00012876,2]
[327002920,1715701846287,-500.0,0.00012876,2]
[327002921,1715701846297,-503.38139826,0.00012876,2]
[327002922,1715701846307,-515.55247848,0.00012876,2]
[327002923,1715701846316,-500.0,0.00012876,2]
[327002924,1715701846327,-500.0,0.00012876,2]
[327002925,1715701846338,-500.0,0.00012876,2]
[327002926,1715701846349,-500.0,0.00012876,2]
[327002927,1715701846360,-500.0,0.00012876,2]
[327002928,1715701846370,-500.0,0.00012876,2]
[327002929,1715701846379,-500.0,0.00012876,2]
[327002930,1715701846388,-500.0,0.00012876,2]
[327002931,1715701846397,-505.00322131,0.00012876,2]
[327002932,1715701846408,-500.0,0.00012876,2]
[327002933,1715701846417,-513.48039435,0.00012876,2]
[327002934,1715701846426,-500.0,0.00012876,2]
[327002935,1715701846435,-510.58379298,0.00012876,2]
[327002936,1715701846445,-506.18088275,0.00012876,2]
[327002937,1715701846455,-500.0,0.00012876,2]